bitfinex/quotes_BTCUSD_20250213
["timestamp","ask_amount","ask_price","bid_price","bid_amount"]
[1739474186249,0.155499,96464.0,96458.0,0.25800965]
[1739474186710,0.155498,96465.0,96460.0,0.007]
[1739474186927,0.207309,96475.0,96460.0,0.007]
[1739474187141,0.155503,96461.0,96460.0,0.007]
[1739474187741,0.155511,96456.0,96454.0,0.15]
[1739474187956,0.155503,96461.0,96458.0,0.006]
[1739474188158,0.155506,96460.0,96458.0,0.012]
[1739474188372,0.155506,96460.0,96458.0,0.006]
[1739474188587,0.0489,96478.0,96459.0,0.10250365]
[1739474188798,0.207309,96474.0,96461.0,0.207336]
[1739474189005,0.155491,96469.0,96463.0,0.155499]
[1739474189247,0.18203,96468.0,96463.0,0.155499]
[1739474189459,0.18203,96468.0,96467.0,0.155493]
[1739474189665,0.155479,96476.0,96468.0,0.207322]
[1739474189882,0.155481,96475.0,96470.0,0.155488]
[1739474190105,0.0489,96478.0,96467.0,0.10250365]
[1739474190314,0.155486,96472.0,96467.0,0.25799665]
[1739474190523,0.740014,96471.0,96467.0,0.25799665]
[1739474190958,0.740014,96471.0,96467.0,0.10250365]
[1739474191198,1.498124,96477.0,96467.0,0.10250365]
[1739474191420,0.0489,96478.0,96467.0,0.10250365]
[1739474191421,0.155488,96471.0,96467.0,0.10250365]
[1739474191633,0.747928,96470.0,96467.0,0.10650365]
[1739474191866,0.155491,96468.0,96467.0,0.10650365]
[1739474192069,2.045541,96468.0,96467.0,0.11050365]
[1739474192287,2.058401,96468.0,96467.0,0.11050365]
[1739474192504,1.938401,96468.0,96467.0,0.10250365]
[1739474192708,1.938401,96468.0,96467.0,0.10650365]
[1739474192913,1.78291,96468.0,96467.0,0.11050365]
[1739474193145,1.938401,96468.0,96467.0,0.11050365]
[1739474194290,1.938401,96468.0,96467.0,0.10250365]
[1739474194549,1.938401,96468.0,96467.0,0.10750365]
[1739474194708,1.938401,96468.0,96467.0,0.005]
[1739474195980,0.0496,96467.0,96448.0,0.08300004]
[1739474196213,0.155517,96453.0,96449.0,0.10250365]
[1739474196430,0.155518,96452.0,96449.0,0.10250365]
[1739474196623,0.155519,96451.0,96449.0,0.10250365]
[1739474197058,0.207347,96457.0,96449.0,0.10250365]
[1739474197266,0.207329,96465.0,96449.0,0.10250365]
[1739474197475,4.374e-05,96465.0,96449.0,0.10250365]
[1739474197696,0.155527,96446.0,96445.0,0.00018386]
[1739474199314,0.203127,96446.0,96445.0,0.00318386]
[1739474199945,0.203127,96446.0,96445.0,0.00518386]
[1739474200306,3.389474,96446.0,96445.0,0.00518386]
[1739474200508,3.446374,96446.0,96445.0,0.00518386]
[1739474200869,2.952116,96446.0,96445.0,0.00218386]
[1739474201080,2.697904,96446.0,96445.0,0.00018386]
[1739474201503,2.698904,96446.0,96445.0,0.00018386]
[1739474201715,2.701904,96446.0,96445.0,0.00018386]
[1739474201946,2.700904,96446.0,96445.0,0.00018386]
[1739474202153,2.701904,96446.0,96445.0,0.00018386]
[1739474210158,0.288027,96446.0,96445.0,0.00018386]
[1739474211378,0.208127,96446.0,96445.0,0.00018386]
[1739474212238,0.2082336,96446.0,96445.0,0.00018386]
[1739474212877,0.1606336,96446.0,96445.0,0.00018386]
[1739474213467,0.0051066,96446.0,96445.0,0.00018386]
[1739474214068,0.1566336,96446.0,96445.0,0.00018386]
[1739474214478,0.1576336,96446.0,96445.0,0.00018386]
[1739474217908,0.20836449,96446.0,96445.0,0.00018386]
[1739474218107,0.1576336,96446.0,96445.0,0.00018386]
[1739474220842,0.43143725,96446.0,96445.0,0.00018386]
[1739474221052,0.43143725,96446.0,96418.0,0.00022386]
[1739474221053,0.15557,96419.0,96418.0,0.00022386]
[1739474222235,0.207425,96421.0,96418.0,0.0003552]
[1739474222681,0.15557,96419.0,96418.0,0.0003552]
[1739474222891,0.15557,96419.0,96418.0,0.0073552]
[1739474223552,0.16597391,96419.0,96418.0,0.0073152]
[1739474223763,0.16597391,96419.0,96418.0,0.0143152]
[1739474224196,0.16597391,96419.0,96418.0,0.0073152]
[1739474224663,0.16597391,96419.0,96418.0,0.0023152]
[1739474224877,0.16597391,96419.0,96418.0,0.0053152]
[1739474225327,0.16597391,96419.0,96418.0,0.0023152]
[1739474225748,0.16597391,96419.0,96418.0,0.0003152]
[1739474225954,0.16597391,96419.0,96418.0,0.0023152]
[1739474226601,0.16597391,96419.0,96418.0,0.0033152]
[1739474226813,0.16597391,96419.0,96418.0,0.0023152]
[1739474227238,0.16597391,96419.0,96418.0,0.0043152]
[1739474227469,0.01040391,96419.0,96403.0,0.15]
[1739474227694,0.01040391,96419.0,96396.0,0.07289289]
[1739474227695,0.362999,96419.0,96418.0,0.004]
[1739474227902,0.362999,96419.0,96418.0,0.002]
[1739474228134,0.37372264,96419.0,96418.0,0.002]
[1739474228365,0.37372264,96419.0,96418.0,0.005]
[1739474229030,0.37372264,96419.0,96418.0,0.003]
[1739474229287,0.37372264,96419.0,96418.0,0.005]
[1739474229948,0.37372264,96419.0,96418.0,0.003]
[1739474230155,0.155579,96414.0,96413.0,4.373e-05]
[1739474230374,0.155579,96414.0,96413.0,0.10254738]
[1739474231456,0.256414,96426.0,96413.0,0.10254738]
[1739474231688,0.155577,96415.0,96414.0,0.10241134]
[1739474233051,0.155577,96415.0,96414.0,0.10541134]
[1739474233475,0.155577,96415.0,96414.0,0.10241134]
[1739474233962,0.155577,96415.0,96414.0,0.10731921]
[1739474234702,0.155577,96415.0,96414.0,0.10531921]
[1739474234914,0.155577,96415.0,96414.0,0.10731921]
[1739474235123,0.155577,96415.0,96414.0,0.10431921]
[1739474235515,0.207428,96419.0,96414.0,0.10631921]
[1739474235714,0.155572,96418.0,96414.0,0.10631921]
[1739474236132,0.01052021,96426.0,96414.0,0.10631921]
[1739474236345,0.155549,96433.0,96415.0,0.233077]
[1739474236547,0.01054771,96445.0,96420.0,0.14464486]
[1739474236814,0.0001066,96446.0,96426.0,0.155559]
[1739474237010,0.0001066,96446.0,96427.0,0.10250365]
[1739474237242,0.01048687,96446.0,96427.0,0.10250365]
[1739474237451,0.0001066,96446.0,96430.0,0.155553]
[1739474237675,0.0001066,96446.0,96431.0,0.10250365]
[1739474237878,0.155533,96443.0,96431.0,0.10250365]
[1739474238280,0.0001066,96446.0,96431.0,0.10250365]
[1739474238483,0.155531,96444.0,96431.0,0.10250365]
[1739474238703,0.155532,96443.0,96431.0,0.10250365]
[1739474239039,0.0001066,96446.0,96431.0,0.10250365]
[1739474239247,0.155549,96433.0,96431.0,0.10250365]
[1739474239460,0.207386,96439.0,96431.0,0.10250365]
[1739474239461,0.155544,96436.0,96431.0,0.10250365]
[1739474239668,0.155547,96434.0,96431.0,0.10250365]
[1739474239877,0.155548,96433.0,96431.0,0.10250365]
[1739474240538,0.155548,96433.0,96431.0,0.10550365]
[1739474241678,0.207377,96443.0,96431.0,0.07550365]
[1739474241894,0.01084007,96446.0,96431.0,0.07550365]
[1739474242307,0.155541,96438.0,96431.0,0.07850365]
[1739474242568,0.155538,96440.0,96431.0,0.07850365]
[1739474242743,0.155538,96440.0,96431.0,0.07550365]
[1739474243046,0.155541,96438.0,96431.0,0.07250365]
[1739474243466,0.01084007,96446.0,96431.0,0.07250365]
[1739474243681,0.0001066,96446.0,96432.0,0.00103695]
[1739474243903,0.0001066,96446.0,96433.0,0.10250365]
[1739474244116,0.15553,96444.0,96433.0,0.10250365]
[1739474244350,0.155535,96441.0,96433.0,0.10250365]
[1739474244573,0.14464486,96443.0,96431.0,0.001]
[1739474244787,0.15555,96432.0,96431.0,0.001]
[1739474245487,0.15555,96432.0,96431.0,0.002]
[1739474245719,0.0457,96445.0,96431.0,0.10350365]
[1739474245945,0.155537,96441.0,96432.0,0.10250365]
[1739474246175,0.155533,96442.0,96432.0,0.10250365]
[1739474246397,0.002,96450.0,96432.0,0.10250365]
[1739474246611,0.16604634,96446.0,96432.0,0.10250365]
[1739474246839,0.0001066,96446.0,96433.0,0.00103693]
[1739474247049,0.0001066,96446.0,96434.0,0.10250365]
[1739474247279,0.0001066,96446.0,96439.0,0.155538]
[1739474247537,0.0001066,96446.0,96440.0,0.10250365]
[1739474248385,0.51231693,96714.0,96440.0,0.10250365]
[1739474248599,0.155519,96451.0,96440.0,0.10250365]
[1739474249283,0.001,96446.0,96440.0,0.10750365]
[1739474249507,0.14464486,96460.0,96440.0,0.10750365]
[1739474249723,0.155521,96450.0,96440.0,0.11050365]
[1739474250181,0.14464486,96460.0,96440.0,0.11050365]
[1739474250407,0.207363,96449.0,96440.0,0.11050365]
[1739474250624,0.155532,96444.0,96440.0,0.10750365]
[1739474250830,0.207361,96450.0,96440.0,0.11050365]
[1739474251039,0.207359,96451.0,96440.0,0.11050365]
[1739474251677,0.155529,96445.0,96440.0,0.11050365]
[1739474251883,0.155529,96445.0,96440.0,0.10550365]
[1739474252124,0.207374,96444.0,96440.0,0.10250365]
[1739474252333,0.1551716,96460.0,96440.0,0.10250365]
[1739474252538,0.155533,96443.0,96440.0,0.10250365]
[1739474252743,0.207372,96445.0,96440.0,0.10250365]
[1739474252953,0.15553,96444.0,96440.0,0.11250365]
[1739474253164,0.155529,96445.0,96440.0,0.10750365]
[1739474253697,0.1551716,96460.0,96440.0,0.10750365]
[1739474254354,0.0481,96446.0,96426.0,0.0797]
[1739474254574,0.0481,96446.0,96425.0,0.5352]
[1739474254575,0.14464486,96441.0,96427.0,0.10250365]
[1739474254807,0.238835,96441.0,96440.0,0.006]
[1739474255257,0.155558,96427.0,96426.0,0.10250365]
[1739474255473,0.35202686,96440.0,96426.0,0.10250365]
[1739474255690,0.207382,96440.0,96426.0,0.10250365]
[1739474255960,0.0833,96441.0,96426.0,0.10250365]
[1739474256198,0.0481,96446.0,96440.0,0.004]
[1739474256447,0.0481,96446.0,96440.0,0.10650365]
[1739474256686,0.155529,96445.0,96440.0,0.10650365]
[1739474256922,0.0481,96446.0,96440.0,0.10650365]
[1739474257133,0.15553,96444.0,96440.0,0.10650365]
[1739474257352,0.0481,96446.0,96440.0,0.10650365]
[1739474257589,0.155535,96441.0,96440.0,0.004]
[1739474257823,0.15555,96432.0,96426.0,0.004]
[1739474258045,0.207392,96436.0,96427.0,0.10250365]
[1739474258257,0.155558,96427.0,96426.0,0.11050365]
[1739474258720,0.155558,96427.0,96426.0,0.10650365]
[1739474258904,0.155558,96427.0,96426.0,0.10250365]
[1739474259582,0.0768,96439.0,96414.0,0.00022386]
[1739474259768,0.155577,96415.0,96414.0,0.00022386]
[1739474261087,0.16595005,96415.0,96414.0,0.00022386]
[1739474261299,0.16595005,96415.0,96414.0,0.00522386]
[1739474261730,0.16595005,96415.0,96414.0,0.00022386]
[1739474261933,0.16595005,96415.0,96414.0,0.00222386]
[1739474262794,0.16595005,96415.0,96414.0,0.00722386]
[1739474263222,0.16595005,96415.0,96414.0,0.00222386]
[1739474263432,0.16595005,96415.0,96414.0,0.00422386]
[1739474263661,0.16595005,96415.0,96414.0,0.00222386]
[1739474263875,0.16595005,96415.0,96414.0,0.00022386]
[1739474264094,0.16595005,96415.0,96414.0,0.00222386]
[1739474264302,0.16595005,96415.0,96414.0,0.00422386]
[1739474271477,0.28875005,96415.0,96414.0,0.00422386]
[1739474271693,0.43875005,96415.0,96414.0,0.00422386]
[1739474271870,0.46175005,96415.0,96414.0,0.00422386]
[1739474272104,0.46175005,96415.0,96414.0,0.00222386]
[1739474272286,0.5642537,96415.0,96414.0,0.00222386]
[1739474272499,0.5642537,96415.0,96414.0,0.00022386]
[1739474273334,0.5652537,96415.0,96414.0,0.00022386]
[1739474274066,0.5662537,96415.0,96414.0,0.00022386]
[1739474274689,0.60051465,96415.0,96414.0,0.00022386]
[1739474274892,0.7030183,96415.0,96414.0,0.00022386]
[1739474275172,0.60051465,96415.0,96414.0,0.00022386]
[1739474276326,0.5662537,96415.0,96414.0,0.00022386]
[1739474277108,0.46375005,96415.0,96414.0,0.00022386]
[1739474278218,0.5662537,96415.0,96414.0,0.00022386]
[1739474279451,0.155616,96391.0,96390.0,0.07871472]
[1739474279678,0.155616,96391.0,96390.0,0.07882798]
[1739474279849,0.155616,96391.0,96390.0,0.00033691]
[1739474280693,0.155616,96391.0,96390.0,0.00433691]
[1739474281142,0.155616,96391.0,96390.0,0.00833691]
[1739474284383,0.155616,96391.0,96390.0,0.00829691]
[1739474284581,0.382416,96391.0,96390.0,0.00829691]
[1739474285361,0.382416,96391.0,96390.0,0.00429691]
[1739474285577,0.382416,96391.0,96390.0,0.00029691]
[1739474285750,0.382416,96391.0,96390.0,0.00129691]
[1739474285987,0.382416,96391.0,96390.0,0.00029691]
[1739474286408,0.306616,96391.0,96390.0,0.00029691]
[1739474286619,0.307616,96391.0,96390.0,0.00029691]
[1739474286862,0.157616,96391.0,96390.0,0.00029691]
[1739474287495,0.156616,96391.0,96390.0,0.00029691]
[1739474288986,0.001,96391.0,96390.0,0.00029691]
[1739474289187,0.1209,96416.0,96390.0,0.10280056]
[1739474289405,0.155606,96397.0,96391.0,0.10250365]
[1739474289962,0.20747,96400.0,96391.0,0.10250365]
[1739474290166,0.155604,96398.0,96391.0,0.10250365]
[1739474290388,0.207462,96403.0,96391.0,0.10250365]
[1739474290589,0.155611,96394.0,96391.0,0.10250365]
[1739474291161,0.155614,96392.0,96391.0,0.11250365]
[1739474292108,0.155612,96394.0,96391.0,0.11250365]
[1739474292311,0.155603,96399.0,96391.0,0.10250365]
[1739474292534,0.17077178,96415.0,96391.0,0.10250365]
[1739474292737,0.02077178,96415.0,96391.0,0.10750365]
[1739474292943,0.02077178,96415.0,96391.0,0.10954103]
[1739474293112,0.02077178,96415.0,96393.0,0.207483]
[1739474293327,0.155592,96406.0,96395.0,0.155609]
[1739474293527,0.155593,96405.0,96396.0,0.10250365]
[1739474293732,0.155594,96405.0,96396.0,0.10250365]
[1739474294177,0.207438,96414.0,96396.0,0.10250365]
[1739474294380,0.155599,96402.0,96396.0,0.10250365]
[1739474294730,0.20744,96413.0,96396.0,0.25811165]
[1739474294930,0.155592,96406.0,96396.0,0.25811165]
[1739474295131,0.02077178,96415.0,96396.0,0.10250365]
[1739474295797,0.26368643,96416.0,96396.0,0.10250365]
[1739474295798,0.01065143,96416.0,96396.0,0.10250365]
[1739474296028,0.207419,96423.0,96397.0,0.13043721]
[1739474296182,0.207417,96424.0,96404.0,0.155593]
[1739474296385,0.0496,96425.0,96405.0,0.10250365]
[1739474296782,0.0212553,96430.0,96410.0,0.155584]
[1739474297110,0.002,96415.0,96411.0,0.10250365]
[1739474297605,0.001,96415.0,96411.0,0.10250365]
[1739474298427,0.207426,96420.0,96411.0,0.10250365]
[1739474298602,0.207419,96423.0,96411.0,0.10250365]
[1739474299248,0.155572,96418.0,96411.0,0.10250365]
[1739474299409,0.155572,96418.0,96411.0,0.10450365]
[1739474299668,0.155572,96418.0,96411.0,0.10250365]
[1739474299864,0.14464486,96430.0,96411.0,0.10250365]
[1739474299865,0.155582,96412.0,96411.0,0.10350365]
[1739474300069,0.155582,96412.0,96411.0,0.001]
[1739474300442,0.25294,96414.0,96394.0,0.0815]
[1739474300443,0.1556,96401.0,96394.0,0.0815]
[1739474300647,0.1556,96401.0,96395.0,0.10250365]
[1739474300851,0.155601,96400.0,96395.0,0.10250365]
[1739474301253,0.155599,96402.0,96395.0,0.10250365]
[1739474301504,0.207458,96405.0,96395.0,0.10250365]
[1739474301652,0.155598,96402.0,96395.0,0.10250365]
[1739474301857,0.20746,96404.0,96395.0,0.10250365]
[1739474302059,0.207462,96403.0,96395.0,0.10250365]
[1739474302265,0.155599,96402.0,96395.0,0.10850365]
[1739474302463,0.155599,96402.0,96395.0,0.10250365]
[1739474302712,0.207462,96403.0,96395.0,0.10250365]
[1739474302956,0.1556,96401.0,96395.0,0.10850365]
[1739474303162,0.207462,96403.0,96395.0,0.11450365]
[1739474303392,0.155601,96400.0,96395.0,0.11450365]
[1739474303607,0.155608,96396.0,96395.0,0.10850365]
[1739474303812,0.155604,96399.0,96395.0,0.10250365]
[1739474304021,0.207441,96413.0,96395.0,0.10850365]
[1739474304227,0.155592,96406.0,96395.0,0.26411265]
[1739474304410,0.155592,96406.0,96395.0,0.25811265]
[1739474304649,0.207451,96408.0,96395.0,0.25811265]
[1739474304881,0.155593,96405.0,96395.0,0.26511265]
[1739474305112,0.15,96429.0,96396.0,0.04763724]
[1739474305331,0.155563,96424.0,96401.0,0.0816]
[1739474305551,0.155564,96423.0,96414.0,0.0816]
[1739474305759,0.155575,96416.0,96415.0,0.10250365]
[1739474308331,0.155575,96416.0,96415.0,0.10450365]
[1739474309328,0.155575,96416.0,96415.0,0.002]
[1739474310090,0.201675,96416.0,96415.0,0.002]
[1739474315800,0.351675,96416.0,96415.0,0.002]
[1739474316014,0.44602458,96416.0,96415.0,0.002]
[1739474316236,0.52842458,96416.0,96415.0,0.002]
[1739474316725,0.52842458,96416.0,96415.0,0.001]
[1739474316933,0.457075,96416.0,96415.0,0.001]
[1739474317253,0.458075,96416.0,96415.0,0.001]
[1739474317824,0.155616,96391.0,96390.0,0.00029691]
[1739474318026,0.155616,96391.0,96390.0,0.10280056]
[1739474319678,0.155616,96391.0,96390.0,0.10980056]
[1739474320824,0.35209186,96410.0,96390.0,0.10980056]
[1739474320825,0.0462065,96416.0,96390.0,0.10980056]
[1739474321027,0.01298687,96398.0,96391.0,0.10250365]
[1739474321159,0.155612,96394.0,96391.0,0.10250365]
[1739474322220,0.01313917,96398.0,96391.0,0.10250365]
[1739474322454,0.155614,96392.0,96391.0,0.10750365]
[1739474322660,0.207483,96394.0,96391.0,0.10250365]
[1739474322810,0.155614,96392.0,96391.0,0.10850365]
[1739474323391,0.207483,96394.0,96391.0,0.11350365]
[1739474323591,0.207476,96397.0,96391.0,0.11350365]
[1739474323592,0.15561,96395.0,96391.0,0.11350365]
[1739474324154,0.155613,96393.0,96391.0,0.10250365]
[1739474324365,0.155613,96393.0,96391.0,0.11450365]
[1739474324765,0.155613,96393.0,96391.0,0.10950365]
[1739474324997,0.155613,96393.0,96391.0,0.11450365]
[1739474325412,0.155611,96394.0,96391.0,0.10950365]
[1739474325618,0.155611,96394.0,96391.0,0.10850365]
[1739474326004,0.155611,96394.0,96391.0,0.11450365]
[1739474326365,0.207479,96396.0,96391.0,0.10850365]
[1739474326570,0.15561,96395.0,96391.0,0.10850365]
[1739474326793,0.14464486,96420.0,96391.0,0.11450365]
[1739474326955,0.05938651,96416.0,96393.0,0.0758]
[1739474327158,0.05938651,96416.0,96394.0,0.10250365]
[1739474327796,0.155616,96391.0,96390.0,0.00029691]
[1739474329631,0.407616,96391.0,96390.0,0.00029691]
[1739474329828,0.407616,96391.0,96373.0,0.00022365]
[1739474329829,0.257661,96363.0,96362.0,0.07116623]
[1739474330056,0.304661,96363.0,96362.0,0.07160434]
[1739474330335,0.202661,96363.0,96362.0,0.07160434]
[1739474330580,0.352661,96363.0,96362.0,0.07160434]
[1739474330788,0.305661,96363.0,96362.0,0.07160434]
[1739474330986,0.305661,96363.0,96362.0,0.00343811]
[1739474331618,0.31911671,96363.0,96362.0,0.00543811]
[1739474331958,0.31911671,96363.0,96362.0,0.00343811]
[1739474332382,0.32011671,96363.0,96362.0,0.00025368]
[1739474332545,0.32011671,96363.0,96362.0,0.00225368]
[1739474333290,0.32011671,96363.0,96362.0,0.00025368]
[1739474333448,0.32111671,96363.0,96362.0,0.00025368]
[1739474335163,0.002,96363.0,96362.0,0.10275733]
[1739474335829,0.157661,96363.0,96362.0,0.10275733]
[1739474336500,0.156661,96363.0,96362.0,0.10275733]
[1739474336951,0.157661,96363.0,96362.0,0.10275733]
[1739474337134,0.156661,96363.0,96362.0,0.10275733]
[1739474337425,0.155661,96363.0,96362.0,0.10575733]
[1739474337627,0.155661,96363.0,96362.0,0.10275733]
[1739474338051,0.155661,96363.0,96362.0,0.10675733]
[1739474338366,0.01318543,96366.0,96362.0,0.10675733]
[1739474338586,0.155659,96364.0,96363.0,0.10250365]
[1739474338789,0.155642,96375.0,96363.0,0.10250365]
[1739474338988,0.155645,96373.0,96365.0,0.10250365]
[1739474339440,0.155644,96374.0,96365.0,0.10250365]
[1739474339647,0.155647,96372.0,96365.0,0.10250365]
[1739474339876,0.155641,96376.0,96365.0,0.25816065]
[1739474340080,0.155643,96375.0,96366.0,0.155656]
[1739474340300,0.155643,96375.0,96367.0,0.10250365]
[1739474340502,0.20752,96377.0,96367.0,0.10250365]
[1739474340622,0.155638,96378.0,96367.0,0.31004265]
[1739474340829,0.14464486,96390.0,96368.0,0.155653]
[1739474341032,0.155643,96374.0,96369.0,0.10250365]
[1739474341242,0.14464486,96380.0,96369.0,0.10250365]
[1739474341446,0.14464486,96390.0,96369.0,0.10250365]
[1739474341671,0.155642,96375.0,96369.0,0.10250365]
[1739474342092,0.001,96376.0,96369.0,0.10250365]
[1739474342302,0.05143471,96451.0,96369.0,0.10250365]
[1739474342639,0.155645,96373.0,96369.0,0.10250365]
[1739474342854,0.155643,96374.0,96369.0,0.10250365]
[1739474343058,0.155645,96373.0,96369.0,0.10250365]
[1739474343262,0.155645,96373.0,96369.0,0.1027273]
[1739474343703,0.155643,96375.0,96369.0,0.1027273]
[1739474343915,0.155644,96374.0,96369.0,0.1027273]
[1739474344125,0.15565,96370.0,96369.0,0.1027273]
[1739474344333,0.155647,96372.0,96369.0,0.1027273]
[1739474344547,0.155647,96372.0,96369.0,0.1047273]
[1739474344764,0.155648,96371.0,96369.0,0.6379273]
[1739474344987,0.14464486,96380.0,96369.0,0.6379273]
[1739474344988,0.15565,96370.0,96369.0,0.6389273]
[1739474345214,0.15565,96370.0,96369.0,0.6399273]
[1739474345437,0.15565,96370.0,96369.0,0.53542365]
[1739474345652,0.15565,96370.0,96369.0,0.00218365]
[1739474345835,0.15565,96370.0,96369.0,0.00418365]
[1739474346079,0.30565,96370.0,96369.0,0.00418365]
[1739474346309,0.30565,96370.0,96369.0,0.00218365]
[1739474346522,0.30565,96370.0,96369.0,0.00318365]
[1739474346952,0.30565,96370.0,96369.0,0.00118365]
[1739474347181,0.32865,96370.0,96369.0,0.00218365]
[1739474347396,0.50825365,96370.0,96369.0,0.00118365]
[1739474347595,0.40575,96370.0,96369.0,0.00118365]
[1739474347990,0.40575,96370.0,96369.0,0.00018365]
[1739474348109,0.40675,96370.0,96369.0,0.00018365]
[1739474348314,0.40775,96370.0,96369.0,0.00018365]
[1739474348718,0.42848136,96370.0,96369.0,0.00018365]
[1739474348942,0.42848136,96370.0,96369.0,0.00118365]
[1739474349157,0.42948136,96370.0,96369.0,0.00118365]
[1739474349559,0.42848136,96370.0,96369.0,0.00018365]
[1739474349761,0.49210109,96370.0,96369.0,0.00018365]
[1739474350017,0.49010109,96370.0,96369.0,0.00018365]
[1739474350447,0.49110109,96370.0,96369.0,0.00018365]
[1739474351010,0.42848136,96370.0,96369.0,0.00018365]
[1739474351444,0.42948136,96370.0,96369.0,0.00018365]
[1739474351640,0.42948136,96370.0,96369.0,6.5e-07]
[1739474351840,0.305679,96352.0,96351.0,0.0004]
[1739474352066,0.305679,96352.0,96351.0,0.00048625]
[1739474353383,0.305679,96352.0,96351.0,0.00230183]
[1739474354210,0.4459161,96352.0,96351.0,0.00230183]
[1739474354404,0.353079,96352.0,96351.0,0.00230183]
[1739474354580,0.353079,96352.0,96351.0,0.00430183]
[1739474355014,0.353079,96352.0,96351.0,0.00452569]
[1739474355684,0.353079,96352.0,96351.0,0.00252569]
[1739474355846,0.354079,96352.0,96351.0,0.00252569]
[1739474356268,0.354079,96352.0,96351.0,0.00052569]
[1739474356547,0.355079,96352.0,96351.0,0.00052569]
[1739474356737,0.354079,96352.0,96351.0,0.00052569]
[1739474357137,0.355079,96352.0,96351.0,0.00052569]
[1739474357558,0.354079,96352.0,96351.0,0.00052569]
[1739474357762,0.353079,96352.0,96351.0,0.00052569]
[1739474357962,0.354079,96352.0,96351.0,0.00052569]
[1739474358395,0.53290713,96352.0,96351.0,0.00052569]
[1739474358628,0.53190713,96352.0,96351.0,0.00052569]
[1739474358835,0.53290713,96352.0,96351.0,0.00052569]
[1739474359054,0.433179,96352.0,96351.0,0.00052569]
[1739474359652,0.434179,96352.0,96351.0,0.00052569]
[1739474367259,0.4342856,96352.0,96351.0,0.00052569]
[1739474369085,0.3072856,96352.0,96351.0,6.9e-07]
[1739474369345,0.178684,96349.0,96348.0,5.5e-07]
[1739474369564,0.178684,96349.0,96348.0,0.00013193]
[1739474371016,0.328684,96349.0,96348.0,0.00013193]
[1739474372326,0.43118765,96349.0,96348.0,0.00013193]
[1739474372795,0.328684,96349.0,96348.0,0.00013193]
[1739474373020,0.329684,96349.0,96348.0,0.00013193]
[1739474373516,0.330684,96349.0,96348.0,0.00013193]
[1739474374250,0.329684,96349.0,96348.0,0.00013193]
[1739474374692,0.330684,96349.0,96348.0,0.00013193]
[1739474375452,0.43318765,96349.0,96348.0,0.00013193]
[1739474376475,0.35013666,96349.0,96348.0,0.00013193]
[1739474378392,0.17713666,96349.0,96348.0,0.00013193]
[1739474378632,0.02145266,96349.0,96348.0,0.00013193]
[1739474378870,0.02128993,96349.0,96348.0,0.00013193]
[1739474379286,0.01945266,96349.0,96348.0,0.00013193]
[1739474379744,0.02145266,96349.0,96348.0,0.00013193]
[1739474379968,0.002,96349.0,96348.0,0.00013193]
[1739474380196,0.155682,96350.0,96348.0,0.00013193]
[1739474380428,0.155684,96349.0,96348.0,0.00013193]
[1739474380870,0.155684,96349.0,96348.0,0.00213193]
[1739474381093,0.155684,96349.0,96348.0,0.00313193]
[1739474382103,0.155684,96349.0,96348.0,0.00113193]
[1739474382583,0.155684,96349.0,96348.0,0.00213193]
[1739474382833,0.155684,96349.0,96348.0,0.00113193]
[1739474383071,0.155684,96349.0,96348.0,0.00213193]
[1739474383307,0.155684,96349.0,96348.0,0.00113193]
[1739474383550,0.155684,96349.0,96348.0,0.00313193]
[1739474384792,0.155684,96349.0,96348.0,0.10563558]
[1739474385026,0.155684,96349.0,96348.0,0.18253558]
[1739474385757,0.00022387,96351.0,96348.0,0.18253558]
[1739474385975,0.00022387,96351.0,96349.0,0.10250365]
[1739474386470,0.155682,96350.0,96349.0,0.10250365]
[1739474386951,0.00022387,96351.0,96349.0,0.10250365]
[1739474386952,0.00022387,96351.0,96349.0,0.33508665]
[1739474387215,0.00022387,96351.0,96350.0,0.155682]
[1739474387446,0.00022387,96351.0,96350.0,0.10250365]
[1739474388576,0.15590387,96351.0,96350.0,0.10250365]
[1739474388814,0.00022387,96351.0,96350.0,0.10250365]
[1739474389794,0.00022387,96351.0,96350.0,0.10350365]
[1739474390022,0.00022387,96351.0,96350.0,0.25918565]
[1739474390376,0.00022387,96351.0,96350.0,0.10350365]
[1739474390976,0.15590387,96351.0,96350.0,0.10450365]
[1739474391845,0.00022387,96351.0,96350.0,0.10450365]
[1739474392268,0.00022387,96351.0,96350.0,0.42830365]
[1739474393028,0.15590387,96351.0,96350.0,0.42830365]
[1739474394900,0.15590387,96351.0,96350.0,0.3258]
[1739474398336,0.15590387,96351.0,96350.0,0.002]
[1739474400595,0.15590387,96351.0,96350.0,0.87338565]
[1739474400596,0.00022387,96351.0,96350.0,0.87338565]
[1739474401425,0.00022387,96351.0,96350.0,0.33818565]
[1739474402315,0.00022387,96351.0,96350.0,0.18250365]
[1739474402539,0.15590387,96351.0,96350.0,0.10450365]
[1739474402739,0.00022387,96351.0,96350.0,0.10450365]
[1739474403142,0.15590387,96351.0,96350.0,0.10450365]
[1739474403342,0.15590387,96351.0,96350.0,0.002]
[1739474404320,0.20510387,96351.0,96350.0,0.002]
[1739474404496,0.37452286,96351.0,96350.0,0.002]
[1739474404720,0.39752286,96351.0,96350.0,0.002]
[1739474405540,0.39752286,96351.0,96350.0,0.001]
[1739474405746,0.39752286,96351.0,96349.0,0.0001066]
[1739474405747,0.328682,96350.0,96349.0,0.0001066]
[1739474407067,0.34910099,96350.0,96349.0,0.0001066]
[1739474407499,0.57560464,96350.0,96349.0,0.0001066]
[1739474407788,0.57660464,96350.0,96349.0,0.0001066]
[1739474408411,0.47410099,96350.0,96349.0,0.0001066]
[1739474408795,0.47310099,96350.0,96349.0,0.0001066]
[1739474409176,0.47210099,96350.0,96349.0,0.0001066]
[1739474409409,0.47610099,96350.0,96349.0,0.0001066]
[1739474409657,0.47910099,96350.0,96349.0,0.0011066]
[1739474409862,0.47910099,96350.0,96349.0,0.0001066]
[1739474409863,0.57460464,96350.0,96349.0,0.0001066]
[1739474410066,0.435684,96349.0,96348.0,5.3e-07]
[1739474411051,0.45510299,96349.0,96348.0,5.3e-07]
[1739474412559,0.45810299,96349.0,96348.0,5.3e-07]
[1739474412965,0.46510299,96349.0,96348.0,0.00100053]
[1739474413170,0.69311029,96349.0,96348.0,5.3e-07]
[1739474413954,0.72415215,96349.0,96348.0,5.3e-07]
[1739474414194,0.72115215,96349.0,96348.0,5.3e-07]
[1739474414409,0.72115215,96349.0,96348.0,1.3e-07]
[1739474415235,0.71415215,96349.0,96348.0,1.3e-07]